fUSD/lending_fUSD_20240415
["ID","MTS","AMOUNT","RATE_DAILY","PERIOD"]
[322656971,1713189032609,-551.51734688,0.00020998,2]
[322656972,1713189032622,-20164.8706778,0.00020998,2]
[322656973,1713189032634,-3023.2,0.00020998,2]
[322656974,1713189033185,-2648.96033218,0.00020998,2]
[322656975,1713189033198,-9240.0,0.00020998,2]
[322656976,1713189033209,-13418.36599732,0.00020998,2]
[322656977,1713189033222,-6514.82091228,0.00020998,2]
[322656978,1713189033233,-262.99814101,0.00020998,2]
[322656979,1713189033242,-3075.97770024,0.00020998,2]
[322656980,1713189033253,-1126.23059818,0.00020998,2]
[322656981,1713189033263,-376.06413625,0.00020998,2]
[322656982,1713189033272,-619.85903412,0.00020998,2]
[322656983,1713189033282,-705.05491754,0.00020998,2]
[322656984,1713189033292,-155.0,0.00020998,2]
[322656985,1713189033301,-155.0,0.00020998,2]
[322656986,1713189033312,-155.0,0.00020998,2]
[322656987,1713189033321,-779.7842727,0.00020998,2]
[322656988,1713189033331,-155.6112312,0.00020998,2]
[322656989,1713189033341,-2210.85563473,0.00020998,2]
[322656990,1713189033351,-407.61661465,0.00020998,2]
[322656991,1713189033361,-413.65484646,0.00020998,2]
[322656992,1713189033371,-2309.58858575,0.00020998,2]
[322656993,1713189033381,-155.34524345,0.00020998,2]
[322656994,1713189033392,-216.4059465,0.00020998,2]
[322656995,1713189033406,-261.7441955,0.00020998,2]
[322656996,1713189033417,-3864.24437236,0.00020998,2]
[322656997,1713189033428,-251.23310467,0.00020998,2]
[322656998,1713189033438,-1239.26060218,0.00020998,2]
[322656999,1713189033448,-2000.0,0.00020998,2]
[322657000,1713189033458,-1673.69921965,0.00020999,2]
[322657001,1713189033469,-219.18395717,0.00020999,2]
[322657002,1713189033478,-18715.79805901,0.00020999,2]
[322657003,1713189033488,-192.36220435,0.00020999,2]
[322657004,1713189033498,-989.26629441,0.00020999,2]
[322657005,1713189033508,-288.14240339,0.00020999,2]
[322657006,1713189033517,-439.29253902,0.00020999,2]
[322657007,1713189033526,-161.24130101,0.00020999,2]
[322657008,1713189033536,-436.52665143,0.00020999,2]
[322657009,1713189033546,-310.47026813,0.00020999,2]
[322657010,1713189033555,-444.98588362,0.00020999,2]
[322657011,1713189033564,-500.0,0.00020999,2]
[322657012,1713189033573,-325.40164886,0.00020999,2]
[322657013,1713189033583,-166.67858447,0.00020999,2]
[322657014,1713189033592,-387.47266772,0.00020999,2]
[322657015,1713189033601,-542064.53197999,0.00021,2]
[322657032,1713189037378,-1244.50572667,0.00021,2]
[322657034,1713189037391,-1086.56026731,0.00021,2]
[322657037,1713189037407,-302244.64710299,0.00021,2]
[322657043,1713189037437,-90988.0903956,0.00021,2]
[322657047,1713189037498,-250.98903029,0.00021,2]
[322657048,1713189037510,-481.76171996,0.00021,2]
[322657049,1713189037521,-441.56405088,0.00021,2]
[322657050,1713189037614,-9382.66155972,0.00021,2]
[322657051,1713189037626,-2485.11247109,0.00021,2]
[322657052,1713189037674,-16215.87558405,0.00021,2]
[322657053,1713189037800,-2588.58146286,0.00021,2]
[322657075,1713189040331,-631.99325529,0.00021,2]
[322657076,1713189040402,-425.54473768,0.00021,2]
[322657077,1713189040415,-614.15898258,0.00021,2]
[322657078,1713189040427,-304.25402389,0.00021,2]
[322657079,1713189040755,-836.84960982,0.00020999,2]
[322657080,1713189040765,-171.11354246,0.00020999,2]
[322657081,1713189040774,-276.59256168,0.00020999,2]
[322657082,1713189040784,-183.00955639,0.00021,2]
[322657083,1713189040793,-190.88362469,0.00021,2]
[322657084,1713189040808,-511.96994265,0.00021,2]
[322657085,1713189040821,-5949.48807773,0.00021,2]
[322657086,1713189040833,-3602.21195516,0.00021,2]
[322657087,1713189040845,-4128.63986883,0.00021,2]
[322657088,1713189040857,-3933.36463944,0.00021,2]
[322657089,1713189040868,-4432.26839026,0.00021,2]
[322657090,1713189040880,-6757.96750055,0.00021,2]
[322657091,1713189040891,-32793.82785512,0.00021,2]
[322657092,1713189040905,-1617.592005,0.00021,2]
[322657093,1713189040917,-1363.68834929,0.00021,2]
[322657094,1713189040928,-455.64,0.00021,2]
[322657095,1713189040940,-2879.96978164,0.00021,2]
[322657096,1713189040952,-5279.90222341,0.00021,2]
[322657097,1713189040964,-2399.92740478,0.00021,2]
[322657098,1713189040975,-2399.93867394,0.00021,2]
[322657122,1713189042664,-298.99850738,0.00020999,2]
[322657123,1713189042673,-1851.64029777,0.00021,2]
[322657124,1713189042686,-16863.39303017,0.00021,2]
[322657125,1713189042770,-268.67511294,0.00021,2]
[322657126,1713189042782,-1199.99781148,0.00021,2]
[322657127,1713189042794,-328986.9732815,0.00021,2]
[322657128,1713189042806,-383878.11502806,0.00021,2]
[322657145,1713189045591,-418.42480491,0.00020999,2]
[322657146,1713189045601,-166.31519509,0.00021,2]
[322657147,1713189045636,-83133.50550551,0.00021,2]
[322657148,1713189045645,-314923.36268285,0.00021,2]
[322657149,1713189045657,-847.57125145,0.00021,2]
[322657150,1713189045672,-3329.19262676,0.00021,2]
[322657151,1713189046049,-11262.44589035,0.00021,2]
[322657152,1713189046061,-32150.0,0.00021,2]
[322657153,1713189046092,-394.49798793,0.00021,2]
[322657155,1713189282246,9254.80013513,0.0002736,120]
[322657160,1713189293868,157.32897233,0.00034716,31]
[322657161,1713189356283,161.63,0.00034649,31]
[322657162,1713189430774,150.0,0.00026142,120]
[322657182,1713189795600,151.0,0.00028308,120]
[322657186,1713189852761,2000.5,0.00034648,31]
[322657190,1713190099562,270.0,0.00026785,120]
[322657202,1713190232808,-155.0,0.0001629,2]
[322657203,1713190232818,-399.56427023,0.00016291,2]
[322657204,1713190232828,-155.0,0.00016298,2]
[322657205,1713190232838,-526.2102462,0.00016298,2]
[322657206,1713190232848,-246.10562957,0.00016298,2]
[322657207,1713190232858,-443.86081237,0.00016299,2]
[322657208,1713190232869,-3379.09496254,0.000163,2]
[322657209,1713190232879,-66878.56407909,0.00016301,2]
[322657210,1713190232897,-3182.37661944,0.00016301,2]
[322657211,1713190235974,-35152.12220007,0.00016301,2]
[322657212,1713190236038,-263.970971,0.00016301,2]
[322657305,1713190237700,-96059.99999973,0.00016301,2]
[322657308,1713190237711,-6759.753,0.00016301,2]
[322657311,1713190237734,-70341.60650967,0.00016301,2]
[322657313,1713190237744,-400.03,0.00016303,2]
[322657314,1713190237755,-166.99969482,0.00017307,2]
[322657315,1713190237764,-622.80415546,0.0001788,2]
[322657316,1713190237773,-622.80415544,0.0001788,2]
[322657317,1713190237782,-622.80415544,0.0001788,2]
[322657318,1713190237791,-622.80415544,0.0001788,2]
[322657319,1713190237800,-653.62426977,0.00018,2]
[322657320,1713190237809,-150.0,0.00018108,2]
[322657321,1713190237818,-2751.0,0.00018109,2]
[322657322,1713190237827,-150.99,0.00018109,2]
[322657323,1713190237836,-800.0,0.00018185,2]
[322657324,1713190237845,-622.80415544,0.00018289,2]
[322657325,1713190237854,-154.76,0.00018336,2]
[322657326,1713190237863,-499.99,0.00018336,2]
[322657327,1713190237873,-161.59,0.00018387,2]
[322657328,1713190237882,-154.76,0.00018428,2]
[322657329,1713190237891,-400.03,0.00018566,2]
[322657330,1713190237900,-200.0,0.00018646,2]
[322657331,1713190237909,-250.0,0.00018761,2]
[322657332,1713190237918,-23890.0,0.00018761,2]
[322657333,1713190237927,-167.64,0.00018789,2]
[322657334,1713190237936,-622.80415544,0.00018812,2]
[322657335,1713190237946,-1550.0,0.00019,3]
[322657336,1713190237955,-298.99850738,0.00019,2]
[322657337,1713190237964,-2324.1767,0.00019076,2]
[322657338,1713190237974,-434.2702,0.00019076,2]
[322657339,1713190237984,-786.30514372,0.00019077,2]
[322657340,1713190237993,-4650.13967205,0.00019077,2]
[322657341,1713190238003,-718.45,0.00019166,3]
[322657342,1713190238014,-2462.51,0.00019167,2]
[322657343,1713190238023,-144825.89725375,0.00019176,2]
[322657344,1713190238032,-516.0,0.00019178,2]
[322657345,1713190238041,-643.28,0.00019178,2]
[322657346,1713190238050,-4650.13967198,0.0001928,2]
[322657347,1713190238060,-622.80415544,0.00019334,2]
[322657348,1713190238069,-2348.56,0.0001948,2]
[322657349,1713190238079,-270.0,0.0001948,2]
[322657350,1713190238088,-200.0,0.0001948,2]
[322657351,1713190238098,-4650.13967198,0.00019482,2]
[322657352,1713190238111,-178.56,0.00019538,2]
[322657354,1713190238120,-150.0,0.00019607,2]
[322657356,1713190238130,-150.58,0.00019626,2]
[322657358,1713190238139,-4650.13967198,0.00019685,2]
[322657360,1713190238151,-150.58,0.00019711,2]
[322657362,1713190238160,-150.58,0.00019796,2]
[322657364,1713190238169,-622.80415544,0.00019856,2]
[322657366,1713190238179,-150.58,0.00019881,2]
[322657368,1713190238188,-4650.13967198,0.00019887,2]
[322657370,1713190238198,-184.0,0.00019919,2]
[322657372,1713190238207,-797.51529173,0.00019948,2]
[322657374,1713190238216,-150.58,0.00019967,2]
[322657376,1713190238226,-13252.0,0.0002,2]
[322657378,1713190238237,-57332.81098039,0.0002,2]
[322657380,1713190238248,-4999.99,0.0002,2]
[322657382,1713190238257,-150.58,0.00020052,2]
[322657384,1713190238267,-4650.13967198,0.0002009,2]
[322657386,1713190238277,-150.58,0.00020137,2]
[322657388,1713190238286,-150.58,0.00020222,2]
[322657389,1713190238295,-516.0,0.00020274,2]
[322657390,1713190238305,-4650.13967198,0.00020292,2]
[322657391,1713190238315,-807.38704346,0.00020293,2]
[322657392,1713190238324,-150.58,0.00020308,2]
[322657393,1713190238333,-3176.40747528,0.00020347,2]
[322657394,1713190238342,-622.80415544,0.00020378,2]
[322657395,1713190238352,-807.38704343,0.0002038,2]
[322657396,1713190238361,-150.58,0.00020393,2]
[322657397,1713190238370,-800.0,0.00020458,2]
[322657398,1713190238379,-807.38704343,0.00020466,2]
[322657399,1713190238388,-150.58,0.00020478,2]
[322657400,1713190238399,-4650.13967198,0.00020495,2]
[322657401,1713190238409,-171.56,0.00020548,2]
[322657402,1713190238418,-211.61,0.00020548,2]
[322657403,1713190238428,-1269.73945335,0.00020548,2]
[322657404,1713190238438,-807.38704343,0.00020553,2]
[322657405,1713190238447,-150.58,0.00020563,2]
[322657406,1713190238456,-807.38704343,0.0002064,2]
[322657407,1713190238466,-150.58,0.00020649,2]
[322657408,1713190238479,-3176.40747528,0.00020682,2]
[322657409,1713190238490,-3128.86046913,0.00020697,2]
[322657410,1713190238518,-643.67347203,0.00020697,2]
[322657411,1713190238529,-877.60573082,0.00020697,2]
[322657412,1713190238538,-29.58650283,0.00020727,2]
[322657413,1713190238549,-334.02012075,0.00020727,2]
[322657414,1713190238560,-312.18680853,0.00020727,2]
[322657415,1713190238590,-131.59361132,0.00020727,2]
[322657416,1713190238599,-201.59,0.00020764,2]
[322657417,1713190238608,-17526.20348555,0.00020798,2]
[322657418,1713190238620,-346.49127393,0.00020798,2]
[322657419,1713190238664,-4441.11902122,0.00020798,2]
[322657420,1713190238698,-5285.54893428,0.00020798,2]
[322657421,1713190238707,-4806.402,0.00020799,2]
[322657422,1713190238716,-500.0,0.00020799,2]
[322657423,1713190238724,-153.28496838,0.000208,2]
[322657424,1713190238736,-153.28496824,0.00020804,2]
[322657425,1713190238744,-153.28496824,0.00020809,2]
[322657426,1713190238753,-153.28496824,0.00020813,2]
[322657427,1713190238761,-807.38704343,0.00020813,2]
[322657428,1713190238770,-153.28496824,0.00020817,2]
[322657429,1713190238778,-153.28496824,0.00020822,2]
[322657430,1713190238786,-153.28496824,0.00020826,2]
[322657431,1713190238795,-400.03,0.0002083,2]
[322657432,1713190238803,-153.28496824,0.0002083,2]
[322657433,1713190238811,-153.28496824,0.00020835,2]
[322657434,1713190238819,-153.28496824,0.00020839,2]
[322657435,1713190238827,-153.28496824,0.00020843,2]
[322657436,1713190238833,-153.28496824,0.00020848,2]
[322657437,1713190238839,-153.28496824,0.00020852,2]
[322657438,1713190238846,-153.28496824,0.00020857,2]
[322657439,1713190238853,-153.28496824,0.00020861,2]
[322657440,1713190238862,-153.28496824,0.00020865,2]
[322657441,1713190238871,-153.28496824,0.0002087,2]
[322657442,1713190238880,-153.28496824,0.00020874,2]
[322657443,1713190238889,-153.28496824,0.00020878,2]
[322657444,1713190238899,-153.28496824,0.00020883,2]
[322657445,1713190238908,-153.28496824,0.00020887,2]
[322657446,1713190238918,-153.28496824,0.00020891,2]
[322657447,1713190238927,-153.28496824,0.00020896,2]
[322657448,1713190238937,-1233.40056413,0.00020899,5]
[322657449,1713190238946,-1233.40056412,0.00020899,5]
[322657450,1713190238955,-32500.0,0.000209,3]
[322657451,1713190238965,-100000.0,0.000209,2]
[322657452,1713190238974,-245000.0,0.000209,2]
[322657453,1713190238987,-5087.8223,0.000209,2]
[322657454,1713190238997,-153.28496824,0.000209,2]
[322657455,1713190239006,-4650.13967198,0.000209,2]
[322657456,1713190239016,-807.38704343,0.000209,2]
[322657457,1713190239025,-622.80415544,0.000209,2]
[322657458,1713190239034,-323.69764024,0.000209,2]
[322657459,1713190239043,-3648.02374357,0.000209,2]
[322657460,1713190239053,-166.37504122,0.000209,2]
[322657461,1713190239062,-800.0,0.00020959,2]
[322657462,1713190239071,-4574.86707387,0.00020979,2]
[322657463,1713190239084,-5540.1843977,0.00020998,2]
[322657464,1713190239096,-1763.60746529,0.00020998,2]
[322657465,1713190239106,-263.27683673,0.00020998,2]
[322657466,1713190239115,-1246.70346952,0.00020998,2]
[322657467,1713190239126,-8228.38261827,0.00020998,2]
[322657468,1713190239136,-779.90932932,0.00020998,2]
[322657469,1713190239146,-236.29611426,0.00020998,2]
[322657470,1713190239155,-3864.24437236,0.00020998,2]
[322657471,1713190239165,-500.0,0.00020998,2]
[322657472,1713190239175,-446.06564731,0.00020998,2]
[322657473,1713190239185,-160.72739849,0.00020998,2]
[322657474,1713190239194,-364.85993646,0.00020998,2]
[322657475,1713190239204,-204.65575733,0.00020998,2]
[322657476,1713190239216,-1028.49661023,0.00020998,2]
[322657477,1713190239226,-458.28389164,0.00020998,2]
[322657478,1713190239238,-1841.8755839,0.00020998,2]
[322657479,1713190239248,-214.99042296,0.00020998,2]
[322657480,1713190239258,-4721.76014382,0.00020999,2]
[322657481,1713190239267,-165.58228841,0.00020999,2]
[322657482,1713190239277,-1233.40056413,0.00020999,5]
[322657483,1713190239287,-1583.20698277,0.00020999,2]
[322657484,1713190239296,-1233.40056412,0.00020999,5]
[322657485,1713190239306,-211.56606572,0.00020999,2]
[322657487,1713190239315,-500.0,0.00020999,2]
[322657488,1713190239324,-500.0,0.00020999,2]
[322657489,1713190239333,-500.0,0.00020999,2]
[322657490,1713190239343,-314.75329238,0.00020999,2]
[322657491,1713190239352,-500.0,0.00020999,2]
[322657492,1713190239362,-619.20083146,0.00020999,2]
[322657493,1713190239371,-500.0,0.00020999,2]
[322657494,1713190239381,-500.0,0.00020999,2]
[322657495,1713190239391,-500.0,0.00020999,2]
[322657496,1713190239400,-500.0,0.00020999,2]
[322657497,1713190239409,-500.0,0.00020999,2]
[322657498,1713190239419,-827575.13760047,0.00021,2]
[322657526,1713190240604,-10209.89537493,0.00021,2]
[322657527,1713190240616,-3359.99088265,0.00021,2]
[322657528,1713190240628,-2879.96006865,0.00021,2]
[322657529,1713190240640,-2399.99763696,0.00021,2]
[322657530,1713190240651,-2399.99132803,0.00021,2]
[322657531,1713190240662,-284917.0494491,0.00021,2]
[322657532,1713190240673,-664536.39686065,0.00021,2]
[322657533,1713190240684,-682.59032759,0.00021,2]
[322657534,1713190240696,-643.037882,0.00021,2]
[322657535,1713190240708,-331.02214162,0.00021,2]
[322657536,1713190240720,-270.57029765,0.00021,2]
[322657537,1713190240735,-377.16981804,0.00021,2]
[322657566,1713190243997,-2537.27554445,0.00016297,2]
[322657567,1713190244009,-460.04834263,0.00016297,2]
[322657568,1713190244019,-540.0,0.00019178,2]
[322657569,1713190244028,-500.0,0.00020898,2]
[322657570,1713190244038,-2058.6887,0.000209,2]
[322657571,1713190244048,-436.3633585,0.00020999,2]
[322657572,1713190244058,-283.49732225,0.00021,2]
[322657573,1713190244067,-137805.9206528,0.00021,2]
[322657574,1713190244109,-1867.2363406,0.00020829,2]
[322657575,1713190244118,-925.45115812,0.00021,2]
[322657576,1713190244131,-28455.82956365,0.00021,2]
[322657577,1713190244140,-2388.32892195,0.00021,2]
[322657578,1713190244180,-1111.67107805,0.00021,2]
[322657579,1713190244192,-715.62335084,0.00021,2]
[322657580,1713190244202,-16689.57847319,0.00021,2]
[322657581,1713190244214,-2923.44086805,0.00021,2]
[322657582,1713190244271,-540.0,0.00020274,2]
[322657583,1713190244281,-250243.33639718,0.00021,2]
[322657584,1713190244294,-1308.00000413,0.00021,2]
[322657585,1713190244311,-5429.12216,0.00021,2]
[322657586,1713190244322,-1199.97788577,0.00021,2]
[322657587,1713190244334,-1199.99976371,0.00021,2]
[322657621,1713190245796,-400.0,0.00020899,2]
[322657623,1713190245806,-1335.84461981,0.00020899,2]
[322657625,1713190245815,-833.61967077,0.00020899,2]
[322657627,1713190245825,-585.19437729,0.00020999,2]
[322657629,1713190245834,-500.0,0.00020999,2]
[322657630,1713190245843,-28345.34133213,0.00021,2]
[322657631,1713190245854,-9428.43967505,0.00021,2]
[322657632,1713190245876,-223818.00878571,0.00021,2]
[322657633,1713190245963,-246.10562957,0.00020899,2]
[322657634,1713190245972,-65633.89437041,0.00021,2]
[322657640,1713190259650,434.8635423,0.00020998,60]
[322657641,1713190265699,150.5,0.0002099,15]
[322657642,1713190266171,169.65,0.0002098,15]
[322657643,1713190382893,150.5,0.0002099,15]
[322657644,1713190383374,150.5,0.0002098,15]
[322657645,1713190384100,150.5,0.0002097,15]
[322657646,1713190609571,-895.56,0.00024329,15]
[322657647,1713190609605,-895.56,0.00027068,15]
[322657648,1713190609636,-641.71596281,0.00027941,25]
[322657649,1713190611182,-151.0,0.000287,120]
[322657650,1713190611221,-156.24442575,0.00029,120]
[322657651,1713190611268,-270.0,0.00029219,120]
[322657652,1713190611301,-151.0,0.00029286,30]
[322657653,1713190611335,-150.0,0.0002941,120]
[322657654,1713190611367,-200.0,0.0002955,120]
[322657655,1713190611402,-895.56,0.00029808,15]
[322657656,1713190611439,-296.86046218,0.0003,30]
[322657657,1713190611474,-150.53040779,0.0003,120]
[322657658,1713190611508,-654.06429818,0.0003,30]
[322657659,1713190611549,-211.37035065,0.00030548,30]
[322657660,1713190611581,-202.69842711,0.00030548,30]
[322657661,1713190611612,-211.37035065,0.00030685,30]
[322657662,1713190611643,-202.69842711,0.00030685,30]
[322657663,1713190611674,-211.37035065,0.00030795,30]
[322657664,1713190611706,-202.69842711,0.00030795,30]
[322657665,1713190611737,-211.37035065,0.00030932,30]
[322657666,1713190611768,-202.69842711,0.00030932,30]
[322657667,1713190611802,-211.37035065,0.00031068,30]
[322657668,1713190611833,-202.69842711,0.00031068,30]
[322657669,1713190611864,-211.37035065,0.00031205,30]
[322657670,1713190611894,-202.69842711,0.00031205,30]
[322657671,1713190611923,-211.37035065,0.00031315,30]
[322657672,1713190611954,-202.69842711,0.00031315,30]
[322657673,1713190611988,-211.37035065,0.00031452,30]
[322657674,1713190612019,-202.69842711,0.00031452,30]
[322657675,1713190612049,-211.37035065,0.00031589,30]
[322657676,1713190612081,-202.69842711,0.00031589,30]
[322657677,1713190612114,-211.37035065,0.00031699,30]
[322657678,1713190612146,-202.69842711,0.00031699,30]
[322657679,1713190612176,-211.37035065,0.00031836,30]
[322657680,1713190612208,-202.69842711,0.00031836,30]
[322657681,1713190612240,-211.37035065,0.00031973,30]
[322657682,1713190612270,-202.69842711,0.00031973,30]
[322657683,1713190612307,-211.37035065,0.0003211,30]
[322657684,1713190612336,-202.69842711,0.0003211,30]
[322657685,1713190612366,-211.37035065,0.00032219,30]
[322657686,1713190612394,-202.69842711,0.00032219,30]
[322657687,1713190612423,-211.37035065,0.00032356,30]
[322657688,1713190612453,-202.69842711,0.00032356,30]
[322657689,1713190612487,-895.56,0.00032548,15]
[322657690,1713190612571,-1000.0,0.00032877,30]
[322657691,1713190612630,-150.0,0.00032877,30]
[322657692,1713190612658,-233.10126041,0.00032877,30]
[322657693,1713190612687,-150.0,0.00032877,30]
[322657694,1713190612721,-150.0,0.00032877,30]
[322657695,1713190612747,-150.0,0.00032877,30]
[322657696,1713190613332,-150.0,0.00032877,30]
[322657697,1713190613427,-150.0,0.00032877,30]
[322657698,1713190613451,-150.0,0.00032877,30]
[322657699,1713190613479,-150.0,0.00032877,30]
[322657700,1713190613503,-150.0,0.00032877,30]
[322657701,1713190613525,-150.0,0.00032877,30]
[322657702,1713190613549,-150.0,0.00032877,30]
[322657703,1713190613572,-150.0,0.00032877,30]
[322657704,1713190613595,-150.0,0.00032877,30]
[322657705,1713190613619,-150.0,0.00032877,30]
[322657706,1713190613643,-150.0,0.00032877,30]
[322657707,1713190613668,-150.0,0.00032877,30]
[322657708,1713190613693,-150.0,0.00032877,30]
[322657709,1713190613722,-150.0,0.00032877,30]
[322657710,1713190613747,-176.0,0.0003296,19]
[322657711,1713190613772,-157.35960346,0.00033,120]
[322657712,1713190613797,-636.6586719,0.00033,34]
[322657713,1713190613825,-150.0,0.00033643,120]
[322657714,1713190613849,-9840.25599816,0.00034,15]
[322657715,1713190613873,-4939.06,0.00034,30]
[322657716,1713190613897,-600.0,0.00034,35]
[322657717,1713190613924,-176.0,0.000346,22]
[322657718,1713190613958,-28634.853,0.000348,30]
[322657719,1713190613985,-2000.0,0.00034862,31]
[322657720,1713190614009,-2000.0,0.00034862,31]
[322657721,1713190614035,-2000.0,0.00034862,31]
[322657722,1713190614059,-2000.0,0.00034862,31]
[322657723,1713190614082,-2000.0,0.00034862,31]
[322657724,1713190614107,-2000.0,0.00034862,31]
[322657725,1713190614131,-2000.0,0.00034862,31]
[322657726,1713190614155,-1519.46815752,0.00034862,31]
[322657727,1713190614181,-50000.0,0.00035,15]
[322657728,1713190614207,-163.50407417,0.00035,30]
[322657729,1713190614234,-614.21903584,0.00035,120]
[322657730,1713190614257,-2384.19163422,0.00035,120]
[322657731,1713190614283,-1200.0,0.00035,36]
[322657732,1713190614308,-150.0,0.00035117,120]
[322657733,1713190614332,-895.56,0.00035288,15]
[322657734,1713190614359,-150.0,0.00035483,120]
[322657735,1713190614383,-1008.24077738,0.000356,30]
[322657736,1713190614406,-482.0,0.000356,21]
[322657737,1713190614429,-188.0,0.000356,21]
[322657738,1713190614454,-200.0,0.00035616,21]
[322657739,1713190614479,-211.3147062,0.00035616,21]
[322657740,1713190632819,262.0,0.00026785,120]
[322657741,1713190750593,151.0,0.00027843,120]
[322657742,1713190780540,11533.55,0.00034602,31]
[322657743,1713190838572,870.44,0.00028308,120]
[322657744,1713190855199,11533.55,0.00034636,31]
[322657745,1713190963320,6920.13,0.00034636,31]
[322657746,1713191031557,-246.10562957,0.00016468,2]
[322657747,1713191031582,-1782.20366751,0.00016468,2]
[322657748,1713191031606,-532.55824777,0.00016469,2]
[322657749,1713191031630,-780.46960616,0.00016469,2]
[322657750,1713191031653,-904.19716091,0.00016469,2]
[322657751,1713191031676,-155.0,0.00016469,2]
[322657752,1713191031699,-904.19716091,0.00016469,2]
[322657753,1713191031723,-155.0,0.0001647,2]
[322657754,1713191031749,-155.0,0.0001647,2]
[322657755,1713191031773,-523.40353013,0.00016471,2]
[322657756,1713191031796,-246.10562957,0.00016471,2]
[322657757,1713191031818,-426.70228372,0.00016471,2]
[322657758,1713191032144,-236.477768,0.00016472,2]
[322657759,1713191032166,-358.82088595,0.00016472,2]
[322657760,1713191032191,-2997.32388708,0.00016472,2]
[322657761,1713191032215,-5540.1843977,0.00016472,2]
[322657762,1713191032240,-23326.24603011,0.00016475,2]
[322657763,1713191032271,-162.84668432,0.00016486,2]
[322657764,1713191032294,-150.99,0.00016486,2]
[322657765,1713191032320,-150.0,0.00016584,2]
[322657766,1713191032342,-150.0,0.00016584,2]
[322657767,1713191032366,-433.11,0.00016611,2]
[322657768,1713191032389,-150.99,0.00016611,2]
[322657769,1713191032413,-499.99,0.00016611,2]
[322657770,1713191032436,-1242.78,0.00016611,2]
[322657771,1713191032459,-499.99,0.00016611,2]
[322657772,1713191032481,-500.0,0.00017119,2]
[322657773,1713191032506,-227.68,0.00017279,2]
[322657774,1713191056450,150.0,0.00017279,2]
[322657775,1713191056471,150.0,0.00017279,2]
[322657776,1713191056493,150.0,0.00017279,2]
[322657777,1713191056521,147.38224073,0.00017279,2]
[322657778,1713191080641,150.0,0.00017279,2]
[322657779,1713191080662,150.0,0.00017279,2]
[322657780,1713191080682,98.25482715,0.00017279,2]
[322657781,1713191095206,-150.0,0.00017452,2]
[322657782,1713191102410,150.0,0.00017279,2]
[322657783,1713191102433,150.0,0.00017279,2]
[322657784,1713191102452,31.87902263,0.00017279,2]
[322657785,1713191103444,-155.0,0.00017504,2]
[322657786,1713191103467,-358.82088595,0.00017504,2]
[322657787,1713191103491,-162.84668431,0.00017505,2]
[322657788,1713191103516,-200.0,0.00017571,2]
[322657789,1713191103540,-200.0,0.00017599,2]
[322657790,1713191103565,-2997.32388708,0.00017645,2]
[322657791,1713191103589,-2337.63597325,0.00017646,2]
[322657792,1713191104870,1000.0,0.0001958,15]
[322657793,1713191105032,1000.0,0.0001957,15]
[322657794,1713191105172,1000.0,0.0001956,15]
[322657795,1713191105457,1000.0,0.00020889,15]
[322657796,1713191105943,1000.0,0.00020879,15]
[322657797,1713191106849,1000.0,0.00020869,15]
[322657798,1713191107429,1000.0,0.00020989,15]
[322657799,1713191107952,1000.0,0.00020979,15]
[322657800,1713191108778,1000.0,0.0002099,15]
[322657801,1713191109311,1000.0,0.0002098,15]
[322657802,1713191166476,151.0,0.00028204,120]
[322657803,1713191183979,6920.13,0.00034628,31]
[322657806,1713191357523,-246.10562957,0.00017012,2]
[322657807,1713191357543,-155.0,0.00017012,2]
[322657808,1713191357563,-155.0,0.00017012,2]
[322657809,1713191357583,-2013.48387043,0.00017012,2]
[322657810,1713191422221,4613.4,0.00034628,31]
[322657816,1713191432300,-426.70228372,0.00016924,2]
[322657817,1713191432309,-363.35522235,0.00016924,2]
[322657818,1713191432318,-388.175957,0.00016925,2]